bitfinex/quotes_ETHUSD_20250630
["timestamp","ask_amount","ask_price","bid_price","bid_amount"]
[1751264799284,0.02,2499.7,2499.6,28.5829591]
[1751264799472,0.02,2499.7,2499.6,28.7829591]
[1751264800582,0.02,2499.7,2499.6,22.63685257]
[1751264801394,0.02,2499.7,2499.6,22.64085257]
[1751264801709,0.02,2499.7,2499.6,16.19285257]
[1751264802197,0.02,2499.7,2499.6,2.23584049]
[1751264802381,0.02,2499.7,2499.6,0.2]
[1751264806167,0.02,2499.7,2499.6,3.40051208]
[1751264807202,0.02,2499.7,2499.6,0.2]
[1751264812278,0.02,2499.7,2499.5,0.2]
[1751264820032,3.22044553,2499.7,2499.5,0.2]
[1751264820330,0.02,2499.7,2499.5,0.2]
[1751264829539,0.02,2499.7,2499.5,3.8219373]
[1751264831442,0.02,2499.7,2499.5,0.62132604]
[1751264831644,0.02,2499.7,2499.5,0.2]
[1751264832113,0.7717,2499.6,2499.4,0.01]
[1751264833740,3.39214816,2499.7,2499.4,0.01]
[1751264836746,3.72774816,2499.7,2499.4,0.01]
[1751264837750,3.20051862,2499.6,2499.4,0.01]
[1751264838248,3.73604173,2499.7,2499.4,0.01]
[1751264839917,0.3356,2499.6,2499.4,0.01]
[1751264840416,3.20064012,2499.5,2499.4,0.01]
[1751264840948,3.53617521,2499.6,2499.4,0.01]
[1751264846752,3.42045025,2499.7,2499.4,0.01]
[1751264846955,0.22,2499.7,2499.4,0.7611]
[1751264847667,3.42040487,2499.7,2499.4,0.7611]
[1751264851501,3.42040487,2499.7,2499.4,0.01]
[1751264855590,0.22,2499.7,2499.4,0.01]
[1751264856398,0.22,2499.7,2499.4,0.74907618]
[1751264856695,0.22,2499.7,2499.4,3.9498233]
[1751264857997,0.22,2499.7,2499.4,0.74907618]
[1751264859071,3.42040684,2499.7,2499.4,0.74907618]
[1751264859595,3.42040684,2499.7,2499.4,0.01]
[1751264864172,0.22,2499.7,2499.4,0.01]
[1751264864682,0.22,2499.7,2499.5,0.8033]
[1751264867503,3.42039099,2499.7,2499.5,0.8033]
[1751264869919,0.22,2499.7,2499.5,0.8033]
[1751264872602,3.42039367,2499.7,2499.4,0.01]
[1751264873125,0.22,2499.7,2499.4,0.01]
[1751264878628,0.22,2499.7,2499.4,3.21076188]
[1751264878925,0.02,2499.7,2499.5,4.02762699]
[1751264880328,0.02,2499.7,2499.6,4.00041208]
[1751264880518,0.02,2499.7,2499.6,4.20041208]
[1751264894213,0.02,2499.7,2499.6,20.34651861]
[1751264894448,0.02,2499.7,2499.6,23.26017937]
[1751264895319,0.02,2499.7,2499.6,29.68917937]
[1751264896134,0.02,2499.7,2499.6,23.54307284]
[1751264901497,0.02,2499.7,2499.6,23.54307284]
[1751264903668,0.02,2499.7,2499.6,28.30307284]
[1751264907376,0.02,2499.7,2499.6,31.49577408]
[1751264907674,0.02,2499.7,2499.6,25.06677408]
[1751264907873,0.02,2499.7,2499.6,29.93907284]
[1751264909243,0.02,2499.7,2499.6,33.13177408]
[1751264909441,0.02,2499.7,2499.6,25.06677408]
[1751264909685,0.02,2499.7,2499.6,28.37177408]
[1751264911581,0.02,2499.7,2499.6,26.73477408]
[1751264921869,0.02,2499.7,2499.6,31.64873643]
[1751264922260,0.02,2499.7,2499.6,31.65220259]
[1751264922467,0.02,2499.7,2499.6,28.45603519]
[1751264943329,0.02,2499.7,2499.6,21.22813519]
[1751264943538,0.02,2499.7,2499.6,29.29113519]
[1751264945250,0.02,2499.7,2499.6,3.11366076]
[1751264945251,0.3556,2499.7,2499.6,3.11366076]
[1751264945453,0.3556,2499.7,2499.6,6.59932866]
[1751264945634,0.3556,2499.7,2499.6,3.39881658]
[1751264946437,0.3556,2499.7,2499.6,0.2]
[1751264947941,0.3556,2499.7,2499.6,3.40051208]
[1751264948840,0.02,2499.7,2499.6,3.40051208]
[1751264953132,0.02,2499.7,2499.6,0.2]
[1751264954837,0.3556,2499.7,2499.6,0.2]
[1751264957965,8.13434698,2499.7,2499.5,0.01]
[1751264958261,4.36954678,2499.6,2499.5,0.01]
[1751264958461,3.73611208,2499.6,2499.5,0.01]
[1751264960067,0.5356,2499.6,2499.5,0.01]
[1751264963070,3.73611208,2499.6,2499.5,0.01]
[1751264964048,9.8819303,2499.6,2499.5,0.01]
[1751264964778,10.4319303,2499.6,2499.5,0.01]
[1751264965277,11.96076185,2499.6,2499.5,0.01]
[1751264967474,18.38976185,2499.6,2499.5,0.01]
[1751264968875,12.24394363,2499.6,2499.5,0.01]
[1751264981405,11.46451208,2499.6,2499.5,0.01]
[1751264981772,15.76730136,2499.6,2499.5,0.01]
[1751264983028,16.10290136,2499.6,2499.5,0.01]
[1751264983927,11.80011208,2499.6,2499.5,0.01]
[1751264986393,18.49737845,2499.6,2499.5,0.01]
[1751264986630,20.66915481,2499.6,2499.5,0.01]
[1751264987206,3.75064012,2499.5,2499.4,0.01]
[1751264987407,44.08624012,2499.5,2499.4,0.01]
[1751264987828,3.75102432,2499.2,2499.1,0.01]
[1751264988132,27.51970629,2499.2,2499.1,0.01]
[1751264991820,21.08770629,2499.2,2499.1,0.01]
[1751264992024,29.15570629,2499.2,2499.1,0.01]
[1751264993446,21.08770629,2499.2,2499.1,0.01]
[1751264993613,29.15570629,2499.2,2499.1,0.01]
[1751264995243,21.08770629,2499.2,2499.1,0.01]
[1751264995442,29.15570629,2499.2,2499.1,0.01]
[1751264995617,21.08770629,2499.2,2499.1,0.01]
[1751264995823,29.15570629,2499.2,2499.1,0.01]
[1751264997826,29.15470629,2499.2,2499.1,0.01]
[1751264999328,14.94043992,2499.2,2499.1,0.01]
[1751264999534,23.00743992,2499.2,2499.1,0.01]
[1751265001049,23.00743992,2499.2,2498.8,0.01]
[1751265001050,3.53700861,2498.9,2498.8,0.01]
[1751265001253,16.11927498,2498.9,2498.8,0.01]
[1751265002553,17.76227498,2498.9,2498.8,0.01]
[1751265005849,18.31227498,2498.9,2498.8,0.01]
[1751265006242,10.23427498,2498.9,2498.8,0.01]
[1751265006449,19.16809058,2498.9,2498.8,0.01]
[1751265006737,19.16709058,2498.9,2498.8,0.01]
[1751265007143,11.08809058,2498.9,2498.8,0.01]
[1751265007343,19.16709058,2498.9,2498.8,0.01]
[1751265007874,11.08809058,2498.9,2498.8,0.01]
[1751265008068,19.16709058,2498.9,2498.8,0.01]
[1751265008681,11.08809058,2498.9,2498.8,0.01]
[1751265009046,19.16609058,2498.9,2498.8,0.01]
[1751265009240,11.08809058,2498.9,2498.8,0.01]
[1751265009445,19.16609058,2498.9,2498.8,0.01]
[1751265010454,11.08809058,2498.9,2498.8,0.01]
[1751265010779,19.16709058,2498.9,2498.8,0.01]
[1751265011579,11.08809058,2498.9,2498.8,0.01]
[1751265011780,19.16609058,2498.9,2498.8,0.01]
[1751265012071,11.08809058,2498.9,2498.8,0.01]
[1751265012275,19.16609058,2498.9,2498.8,0.01]
[1751265013473,9.89867498,2498.9,2498.8,0.01]
[1751265013780,3.75140861,2498.9,2498.8,0.01]
[1751265013969,21.83040861,2498.9,2498.8,0.01]
[1751265014683,21.82940861,2498.9,2498.8,0.01]
[1751265014978,14.84140861,2498.9,2498.8,0.01]
[1751265015184,21.27940861,2498.9,2498.8,0.01]
[1751265017051,21.82940861,2498.9,2498.8,0.01]
[1751265019562,3.20140861,2498.9,2498.8,0.01]
[1751265019763,11.27940861,2498.9,2498.8,0.01]
[1751265020462,17.42667498,2498.9,2498.8,0.01]
[1751265024499,27.97667498,2498.9,2498.8,0.01]
[1751265028989,28.31227498,2498.9,2498.8,0.01]
[1751265038975,29.26849886,2498.9,2498.8,0.01]
[1751265039371,29.31549885,2498.9,2498.8,0.01]
[1751265044370,22.87749885,2498.9,2498.8,0.01]
[1751265044601,11.23749885,2498.9,2498.8,0.01]
[1751265044801,12.3920547,2498.9,2498.8,0.01]
[1751265045019,30.4700547,2498.9,2498.8,0.01]
[1751265046075,30.4720547,2498.9,2498.8,0.01]
[1751265047683,30.4710547,2498.9,2498.8,0.01]
[1751265047908,21.3274086,2498.9,2498.8,0.01]
[1751265058790,21.28040861,2498.9,2498.8,0.01]
[1751265060822,21.27840861,2498.9,2498.8,0.01]
[1751265063611,21.27740861,2498.9,2498.8,0.01]
[1751265064293,4.85928051,2499.0,2498.9,0.8324]
[1751265064617,11.29428051,2499.0,2498.9,0.8324]
[1751265065611,3.22128051,2499.0,2498.9,0.8324]
[1751265066127,11.29528051,2499.0,2498.9,0.8324]
[1751265067228,17.44254688,2499.0,2498.9,0.8324]
[1751265067547,3.40140861,2498.9,2498.8,0.01]
[1751265091144,0.2,2498.9,2498.8,0.7963]
[1751265091347,9.83340861,2498.9,2498.8,0.7963]
[1751265095580,6.632,2498.9,2498.8,0.7963]
[1751265096677,0.2,2498.9,2498.8,0.7963]
[1751265096975,6.632,2498.9,2498.8,0.7963]
[1751265097173,6.632,2498.9,2498.8,1.21709059]
[1751265099146,6.632,2498.9,2498.8,0.7963]
[1751265101547,0.2,2498.9,2498.8,0.7963]
[1751265101748,6.632,2498.9,2498.8,0.7963]
[1751265102576,0.2,2498.9,2498.8,0.7963]
[1751265102878,6.632,2498.9,2498.8,0.7963]
[1751265105167,0.2,2498.9,2498.8,1.21710852]
[1751265105369,0.02,2499.0,2498.8,4.40964525]
[1751265105585,0.02,2499.0,2498.9,0.7773]
[1751265107454,0.02,2499.0,2498.9,0.9773]
[1751265107985,0.02,2499.0,2498.9,4.17870861]
[1751265108179,0.02,2499.0,2498.9,4.95982174]
[1751265110986,0.02,2499.0,2498.9,1.75841313]
[1751265114702,0.02,2499.0,2498.9,4.95982174]
[1751265120404,0.02,2499.0,2498.9,1.75841313]
[1751265121585,0.02,2499.0,2498.9,4.95982174]
[1751265122299,0.02,2499.0,2498.9,14.95982174]
[1751265128415,0.02,2499.0,2498.9,19.71982174]
[1751265131093,0.02,2499.0,2498.9,26.14982174]
[1751265143837,0.02,2499.0,2498.9,30.45154269]
[1751265146214,0.02,2499.0,2498.9,25.69154269]
[1751265151153,0.02,2499.0,2498.9,21.38982174]
[1751265151313,0.02,2499.0,2498.9,25.69154269]
[1751265153862,0.02,2499.0,2498.9,27.53413708]
[1751265166879,0.02,2499.0,2498.9,32.29413708]
[1751265175786,0.02,2499.0,2498.9,30.45126327]
[1751265181760,0.02,2499.0,2498.9,63.2750808]
[1751265182190,0.02,2499.0,2498.9,58.97363927]
[1751265183594,0.02,2499.0,2498.9,47.31349427]
[1751265187699,0.02,2499.0,2498.9,30.45126327]
[1751265187904,0.02,2499.0,2498.9,47.31637727]
[1751265191312,0.02,2499.0,2498.9,46.83606227]
[1751265191517,0.02,2499.0,2498.9,42.20037727]
[1751265192086,0.02,2499.0,2498.9,34.85384327]
[1751265195612,0.02,2499.0,2498.9,34.65106027]
[1751265199215,0.02,2499.0,2498.9,30.34961874]
[1751265199382,0.02,2499.0,2498.9,34.65106027]
[1751265201118,0.02,2499.0,2498.9,30.45126327]
[1751265201416,0.02,2499.0,2498.9,46.26349627]
[1751265201621,0.02,2499.0,2498.9,42.27651627]
[1751265201798,0.02,2499.0,2498.9,34.65317827]
[1751265205226,0.02,2499.0,2498.9,30.45126327]
[1751265205395,0.02,2499.0,2498.9,39.44961027]
[1751265206415,0.02,2499.0,2498.9,38.96061027]
[1751265206698,0.02,2499.0,2498.9,34.67490527]
[1751265206902,0.02,2499.0,2498.9,18.94252174]
[1751265207107,0.3556,2499.0,2498.9,3.40140861]
[1751265215220,0.02,2499.0,2498.9,7.70285014]
[1751265215727,0.02,2499.0,2498.9,14.12985014]
[1751265218462,0.02,2499.0,2498.9,29.23249167]
[1751265218600,0.02,2499.0,2498.9,29.18249167]
[1751265218794,0.02,2499.0,2498.9,62.42189303]
[1751265219096,0.02,2499.0,2498.9,62.97189303]
[1751265219825,0.02,2499.0,2498.9,60.51149379]
[1751265220398,0.02,2499.0,2498.9,64.50902233]
[1751265222629,0.02,2499.0,2498.9,60.51149379]
[1751265224411,0.02,2499.0,2498.9,65.27149379]
[1751265227516,0.02,2499.0,2498.9,69.25836643]
[1751265227729,0.02,2499.0,2498.9,65.27149379]
[1751265229415,0.02,2499.0,2498.9,69.25735872]
[1751265230454,0.02,2499.0,2498.9,39.25735872]
[1751265230746,0.02,2499.0,2498.9,69.25735872]
[1751265232341,0.02,2499.0,2498.9,39.25735872]
[1751265232543,0.02,2499.0,2498.9,43.46835872]
[1751265232854,0.02,2499.0,2498.9,69.25735872]
[1751265239055,0.02,2499.0,2498.9,39.25735872]
[1751265239238,0.02,2499.0,2498.9,69.25735872]
[1751265241258,0.02,2499.0,2498.9,39.25735872]
[1751265241562,0.02,2499.0,2498.9,69.25735872]
[1751265241763,0.02,2499.0,2498.9,72.94289074]
[1751265242572,0.02,2499.0,2498.9,68.95702581]
[1751265244870,0.02,2499.0,2498.9,64.04301789]
[1751265246470,0.02,2499.0,2498.9,34.04301789]
[1751265246774,0.02,2499.0,2498.9,64.04301789]
[1751265248140,5.45e-06,2499.0,2498.9,64.04301789]
[1751265248340,5.45e-06,2499.0,2498.9,27.06601789]
[1751265248564,5.45e-06,2499.0,2498.9,32.06976389]
[1751265248769,5.45e-06,2499.0,2498.9,30.11181789]
[1751265249071,5.45e-06,2499.0,2498.9,29.56181789]
[1751265250677,5.45e-06,2499.0,2498.9,31.96407789]
[1751265254678,5.45e-06,2499.0,2498.9,25.54007789]
[1751265254881,5.45e-06,2499.0,2498.9,31.96407789]
[1751265255054,5.45e-06,2499.0,2498.9,29.56181789]
[1751265255260,5.45e-06,2499.0,2498.9,38.68397589]
[1751265259489,5.45e-06,2499.0,2498.9,33.76996797]
[1751265259689,5.45e-06,2499.0,2498.9,38.68397589]
[1751265260588,5.45e-06,2499.0,2498.9,42.67970208]
[1751265263988,5.45e-06,2499.0,2498.9,38.68397589]
[1751265264489,5.45e-06,2499.0,2498.9,36.70858189]
[1751265269494,5.45e-06,2499.0,2498.9,34.32181789]
[1751265269663,5.45e-06,2499.0,2498.9,50.02760189]
[1751265271994,5.45e-06,2499.0,2498.9,42.40157889]
[1751265272199,5.45e-06,2499.0,2498.9,34.32181789]
[1751265275066,5.45e-06,2499.0,2498.9,27.89781789]
[1751265275269,5.45e-06,2499.0,2498.9,34.32181789]
[1751265276204,5.45e-06,2499.0,2498.9,3.35140861]
[1751265276205,0.33560545,2499.0,2498.9,3.35140861]
[1751265279203,5.45e-06,2499.0,2498.9,3.35140861]
[1751265279379,0.33560545,2499.0,2498.9,3.35140861]
[1751265279913,0.33560545,2499.0,2498.9,9.77540861]
[1751265280276,0.33560545,2499.0,2498.9,0.15]
[1751265280471,0.33560545,2499.0,2498.8,0.01]
[1751265281379,1.18068313,2499.0,2498.8,0.01]
[1751265281689,0.3356,2498.9,2498.8,0.01]
[1751265283035,0.3356,2498.9,2498.8,3.21153673]
[1751265287315,0.3356,2498.9,2498.8,3.21153673]
[1751265291184,5.45e-06,2499.0,2498.9,3.20140861]
[1751265298009,5.45e-06,2499.0,2498.9,13.86270188]
[1751265325782,5.45e-06,2499.0,2498.9,18.16443925]
[1751265345610,5.45e-06,2499.0,2498.9,24.58843925]
[1751265347498,5.45e-06,2499.0,2498.9,18.16443925]
[1751265350005,5.45e-06,2499.0,2498.9,17.50314598]
[1751265358159,5.45e-06,2499.0,2498.9,13.20140861]
[1751265358286,0.33560545,2499.0,2498.8,3.41153325]
[1751265360006,0.33560545,2499.0,2498.8,0.01]
[1751265361726,3.53689002,2499.0,2498.8,0.01]
[1751265361944,0.373689,2498.9,2498.8,0.01]
[1751265368426,3.91069761,2498.9,2498.8,0.01]
[1751265368630,4.11069761,2498.9,2498.8,0.01]
[1751265368834,0.909289,2498.9,2498.8,0.01]
[1751265369529,4.11069761,2498.9,2498.8,0.01]
[1751265374530,10.53569761,2498.9,2498.8,0.01]
[1751265375722,20.53569761,2498.9,2498.8,0.01]
[1751265379247,3.75217748,2498.3,2497.8,0.01]
[1751265379553,19.90385782,2497.9,2497.8,0.01]
[1751265379725,10.55,2497.8,2496.5,4.78652619]
[1751265380050,6.15116757,2497.5,2496.5,4.78652619]
[1751265380250,0.3256,2497.4,2496.5,4.78652619]
[1751265380427,3.52893687,2497.4,2496.6,3.2042611]
[1751265380613,10.8515544,2497.3,2496.6,3.20428365]
[1751265380819,3.20361973,2497.2,2496.6,3.20428365]
[1751265381017,6.688,2497.1,2496.7,3.20422766]
[1751265381223,6.688,2497.1,2496.9,0.7582]
[1751265381224,6.693,2497.1,2496.9,0.7582]
[1751265381423,6.697,2497.4,2496.9,6.90936757]
[1751265381714,6.697,2497.4,2496.9,0.7582]
[1751265381934,6.697,2497.4,2497.0,3.20378466]
[1751265382367,6.713,2497.4,2497.1,3.20366206]
[1751265383125,6.713,2497.4,2496.9,3.96213213]
[1751265383434,6.713,2497.4,2497.1,3.20361395]
[1751265384113,6.713,2497.4,2496.9,0.7582]
[1751265384310,6.738,2497.7,2497.0,3.20384461]
[1751265384547,3.52844267,2497.8,2496.9,10.80425144]
[1751265384723,6.738,2497.6,2496.9,7.60030433]
[1751265384927,6.749,2497.6,2497.0,3.98886414]
[1751265385228,3.2032032,2497.5,2497.0,0.7851]
[1751265385418,3.20347729,2497.3,2496.8,2.5841]
[1751265385748,0.3256,2497.4,2496.8,2.5841]
[1751265386048,3.20370026,2497.2,2496.8,2.5841]
[1751265386562,3.2037385,2497.1,2496.8,2.5841]
[1751265386753,3.20385142,2497.0,2496.8,2.5841]
[1751265386917,0.3256,2496.9,2496.5,0.8312]
[1751265387429,3.20386464,2497.0,2496.5,0.8312]
[1751265388031,0.3256,2497.1,2496.5,0.8312]
[1751265388540,3.52932385,2497.1,2496.5,0.8312]
[1751265388855,3.20384461,2497.0,2496.5,6.98236757]
[1751265389038,0.2,2496.9,2496.5,6.98236757]
[1751265389418,3.20366716,2497.2,2496.7,6.15116757]
[1751265389620,3.40373384,2497.1,2496.7,6.15116757]
[1751265390015,0.2,2497.1,2496.7,6.15116757]
[1751265390518,0.2,2497.1,2496.9,6.15116757]
[1751265390719,0.2,2497.2,2496.9,6.95206757]
[1751265391335,0.3256,2497.8,2497.1,6.15116757]
[1751265391529,0.3256,2497.8,2497.2,6.15116757]
[1751265391822,3.20319451,2497.6,2497.2,6.15116757]
[1751265393055,3.20304312,2497.7,2497.2,6.15116757]
[1751265393260,3.87619181,2497.7,2497.2,6.15116757]
[1751265393754,0.67314869,2497.7,2497.2,9.35475319]
[1751265394126,3.87614285,2497.7,2497.2,6.15116757]
[1751265394858,3.20308024,2497.6,2497.2,6.15116757]
[1751265395024,3.8761534,2497.7,2497.2,6.15116757]
[1751265395537,3.20308433,2497.6,2497.2,6.15116757]
[1751265396139,3.52847152,2497.8,2497.3,0.7798]
[1751265396351,3.88131376,2497.8,2497.3,0.7798]
[1751265396758,3.20296275,2497.7,2497.3,0.7798]
[1751265396925,3.20307573,2497.6,2497.3,0.7798]
[1751265397131,3.20323545,2497.5,2497.2,6.15116757]
[1751265397863,3.20323545,2497.5,2497.1,0.8284]
[1751265399731,3.20313921,2497.6,2497.1,0.8284]
[1751265399932,3.20313921,2497.6,2497.1,4.03209973]
[1751265400631,3.20313921,2497.6,2497.1,0.8284]
[1751265401130,3.20313921,2497.6,2497.1,4.03210924]
[1751265401354,0.2,2497.6,2497.1,1.0284]
[1751265401559,0.2,2497.6,2497.2,3.20356253]
[1751265402744,3.20269969,2497.9,2497.4,3.20330791]
[1751265403060,0.2,2497.7,2497.5,6.96906757]
[1751265405838,0.2,2497.7,2497.5,0.8179]
[1751265406870,3.20236683,2498.2,2497.5,10.82514129]
[1751265407169,0.2,2498.0,2497.7,6.15116757]
[1751265407468,0.2,2498.0,2497.7,9.35410924]
[1751265408135,0.2,2498.0,2497.7,6.15116757]
[1751265409050,0.2,2498.0,2497.6,3.20304798]
[1751265409248,0.3256,2498.5,2497.9,10.16925782]
[1751265409568,0.2,2498.4,2498.3,6.15116757]
[1751265409755,0.2,2498.4,2498.3,9.35334505]
[1751265409954,0.2,2498.4,2498.3,10.13924505]
[1751265410370,0.2,2498.4,2498.3,6.93706757]
[1751265410571,0.2,2498.4,2498.1,6.93706757]
[1751265411074,0.3256,2498.9,2498.3,9.35334505]
[1751265411234,5.45e-06,2499.0,2498.5,6.15116757]
[1751265411440,3.20128971,2499.0,2498.5,6.15116757]
[1751265411641,5.45e-06,2499.0,2498.5,6.15116757]
[1751265411941,3.20154986,2498.8,2498.4,8.505]
[1751265412443,0.3256,2498.7,2498.1,3.98825687]
[1751265412638,0.3256,2498.7,2498.2,8.495]
[1751265412942,3.52731915,2498.7,2498.2,8.495]
[1751265413145,3.52731915,2498.7,2498.2,11.69725026]
[1751265413442,3.52731915,2498.7,2498.2,8.495]
[1751265413866,0.02,2498.4,2498.2,8.495]
[1751265415764,0.02,2498.4,2498.1,0.7859]
[1751265415942,0.02,2498.4,2498.1,10.68132741]
[1751265417779,3.52789805,2498.3,2497.7,2.6086]
[1751265417939,3.55720869,2498.2,2497.7,8.481]
[1751265418739,0.35478981,2498.2,2497.7,11.68388814]
[1751265418946,0.35478981,2498.2,2497.8,3.20281235]
[1751265420174,0.35478981,2498.2,2497.7,17.83505158]
[1751265420357,3.55711867,2498.2,2497.7,17.83505158]
[1751265421073,0.2,2498.0,2497.8,3.20276836]
[1751265422250,0.2,2498.0,2497.7,17.83505005]
[1751265422745,0.2,2498.0,2497.8,3.20281613]
[1751265423579,0.2,2498.0,2497.7,17.83507542]
[1751265424973,0.2,2498.0,2497.8,3.20281399]
[1751265425468,0.2,2498.0,2497.9,3.20269025]
[1751265426175,0.2,2498.0,2497.8,3.20278307]
[1751265426381,0.3256,2498.3,2497.9,3.20267069]
[1751265426682,0.2,2498.2,2497.9,3.20267069]
[1751265428767,0.2,2498.2,2497.8,0.2]
[1751265428969,0.02,2498.4,2498.1,9.35360141]
[1751265429171,0.02,2498.4,2498.3,10.11734505]
[1751265429887,0.02,2498.4,2498.3,6.91516757]
[1751265430179,0.02,2498.4,2498.2,3.40225476]
[1751265430495,0.02,2498.4,2498.2,3.40223919]
[1751265431355,0.02,2498.4,2498.2,0.2]
[1751265432954,4.1900465,2498.4,2498.0,6.879]
[1751265433375,3.20222376,2498.3,2498.0,0.2]
[1751265433555,0.2,2498.2,2497.8,0.2]
[1751265433756,3.40230977,2498.2,2497.8,0.2]
[1751265434013,0.2,2498.2,2497.8,0.2]
[1751265434206,3.40239348,2498.2,2497.8,0.2]
[1751265434360,4.16161997,2498.2,2497.8,0.2]
[1751265435490,4.16161997,2498.2,2497.8,0.21]
[1751265436393,0.95922649,2498.2,2497.9,6.15116757]
[1751265436558,0.2,2498.2,2497.9,6.15116757]
[1751265438098,3.40231489,2498.2,2497.8,0.21]
[1751265439085,0.2,2498.2,2497.8,3.41279146]
[1751265440002,0.2,2498.2,2497.8,0.21]
[1751265440301,0.89499432,2498.2,2497.8,0.21]
[1751265441401,4.09731172,2498.2,2497.8,0.21]
[1751265442605,3.20243553,2498.1,2497.8,0.21]
[1751265443301,4.09736685,2498.2,2497.8,0.21]
[1751265443504,0.89499432,2498.2,2497.9,6.15116757]
[1751265443695,0.2,2498.2,2498.0,0.8071]
[1751265444708,0.2,2498.2,2497.8,0.9885]
[1751265444914,3.40242406,2498.2,2497.8,0.21]
[1751265446416,3.20246669,2498.1,2497.8,0.21]
[1751265446597,3.52806669,2498.1,2497.8,0.21]
[1751265447304,3.20264939,2498.0,2497.8,0.21]
[1751265448107,3.52809995,2498.1,2497.8,0.21]
[1751265449000,0.3256,2498.1,2497.8,0.21]
[1751265449806,3.52803454,2498.1,2497.8,0.21]
[1751265450007,1.08812341,2498.1,2497.8,0.21]
[1751265450583,0.3256,2498.1,2497.8,0.21]
[1751265452194,3.40236721,2498.2,2497.8,0.21]
[1751265452604,0.2,2498.2,2497.8,9.56391781]
[1751265453117,0.2,2498.2,2497.8,6.36116757]
[1751265453288,3.40231552,2498.2,2497.8,6.36116757]
[1751265453488,0.2,2498.2,2497.8,9.56396941]
[1751265454112,3.40230682,2498.2,2497.8,6.36116757]
[1751265454319,4.2735054,2498.2,2497.8,6.36116757]
[1751265455006,3.20244385,2498.1,2497.8,6.36116757]
[1751265458002,3.20244385,2498.1,2497.8,0.21]
[1751265458919,3.20256471,2498.0,2497.8,0.21]
[1751265459129,3.40256471,2498.0,2497.8,0.01]
[1751265459323,4.15018747,2498.0,2497.8,0.01]
[1751265460090,0.3256,2497.9,2497.8,0.01]
[1751265461823,3.52829025,2497.9,2497.8,0.01]
[1751265462823,3.72829025,2497.9,2497.8,0.01]
[1751265464907,10.34429025,2497.9,2497.8,0.01]
[1751265465109,11.75106087,2497.9,2497.8,0.01]
[1751265467000,8.22277062,2497.9,2497.8,0.01]
[1751265468252,6.81,2497.9,2497.8,0.01]
[1751265468450,6.81,2497.9,2497.8,6.16116757]
[1751265469201,0.2,2497.9,2497.8,6.16116757]
[1751265469554,6.808,2497.9,2497.8,0.01]
[1751265470103,0.2,2497.9,2497.8,0.01]
[1751265470332,6.806,2497.9,2497.8,0.01]
[1751265470496,0.2,2497.9,2497.8,0.01]
[1751265470699,6.804,2497.9,2497.8,0.01]
[1751265471430,0.2,2497.9,2497.8,0.01]
[1751265471606,10.00669025,2497.9,2497.8,0.01]
[1751265471930,11.50381921,2497.9,2497.8,0.01]
[1751265472130,11.50081921,2497.9,2497.8,0.01]
[1751265472630,4.89981921,2497.9,2497.8,0.01]
[1751265472830,6.8,2497.9,2497.8,0.01]
[1751265475041,6.797,2497.9,2497.8,0.01]
[1751265480453,0.2,2497.9,2497.8,10.18268605]
[1751265480664,0.22,2498.2,2497.9,3.20269025]
[1751265480953,0.22,2498.2,2498.1,4.02113384]
[1751265481317,0.22,2498.2,2498.1,0.8187]
[1751265482147,0.22,2498.2,2498.1,4.02113384]
[1751265482353,0.22,2498.2,2498.1,0.8187]
[1751265483757,0.22,2498.2,2498.1,4.02113384]
[1751265484130,0.22,2498.2,2498.1,0.8187]
[1751265484463,0.22,2498.2,2498.1,4.02113384]
[1751265485119,0.02,2498.2,2498.1,4.02113384]
[1751265485539,0.02,2498.2,2498.1,5.37861831]
[1751265489325,0.02,2498.2,2498.1,4.02113384]
[1751265493799,0.3256,2498.0,2497.8,0.01]
[1751265493977,8.3,2497.9,2497.8,0.01]
[1751265494175,11.50269025,2497.9,2497.8,0.01]
[1751265497094,11.82829025,2497.9,2497.8,0.01]
[1751265497264,13.33137708,2497.9,2497.8,0.01]
[1751265502163,13.32337708,2497.9,2497.8,0.01]
[1751265504580,4.70577708,2497.9,2497.8,0.01]
[1751265504786,11.49069025,2497.9,2497.8,0.01]
[1751265504981,11.46569025,2497.9,2497.8,0.01]
[1751265506582,11.48569025,2497.9,2497.8,0.01]
[1751265514288,11.81129025,2497.9,2497.8,0.01]
[1751265516706,21.81129025,2497.9,2497.8,0.01]
[1751265518178,22.36129025,2497.9,2497.8,0.01]
[1751265522979,28.51245782,2497.9,2497.8,0.01]
[1751265523581,10.55,2497.8,2496.1,0.1807604]
[1751265523902,16.15116757,2496.9,2496.1,0.1807604]
[1751265524101,3.20474301,2496.3,2496.1,0.1807604]
[1751265524301,10.16274301,2496.3,2496.1,0.1807604]
[1751265524874,10.16274301,2496.3,2496.1,4.16251068]
[1751265525076,3.2048714,2496.2,2496.1,4.16251068]
[1751265525889,10.16278499,2496.3,2496.1,4.16251068]
[1751265526089,11.25286594,2496.3,2496.1,0.1807604]
[1751265526289,8.04808095,2496.3,2496.1,0.1807604]
[1751265526688,1.09008095,2496.3,2496.1,0.1807604]
[1751265526891,6.952,2496.2,2496.1,0.1807604]
[1751265527306,3.53024737,2496.4,2496.1,0.1807604]
[1751265527502,6.948,2496.3,2496.1,0.1807604]
[1751265527706,0.3256,2496.4,2496.1,0.1807604]
[1751265527910,0.30042037,2496.5,2496.1,0.1807604]
[1751265527911,6.948,2496.3,2496.1,0.1807604]
[1751265528410,6.947,2496.2,2496.1,0.1807604]
[1751265528916,6.945,2496.2,2496.1,0.1807604]
[1751265530704,3.50380312,2496.5,2496.1,0.1807604]
[1751265530905,4.20718003,2496.5,2496.1,0.1807604]
[1751265531106,3.20440201,2496.6,2496.1,0.1807604]